Cogmind - Beta 11 X5 @@@ ROGUE MODE // 2021.07.05 @ 02:04:55 Player: Runia Result: Destroyed by S-43 Plague with Heavy Machine Gun Performance ------------- Evolutions (7) 3500 Regions Visited (21) 4200 Robots Destroyed (150) 750 Value Destroyed (6535) 6535 Prototype IDs (35) 700 Alien Tech Used (2) 400 Bonus (3057) 3057 TOTAL SCORE: 19142 Bonus ------- High Alert Combat Kills 225 Follower Combat Kills 1003 Met Zhirov 300 Met Warlord at Base 500 MAIN.C Attacked Warlord 500 A7 Reached Mainframe 300 Met R17 at Cetus 500 Friendly Fire -271 Cogmind --------- Core Integrity 0/1300 Matter 280/300 Energy 301/380 System Corruption 25% Temperature Cool (0) Movement Hovering (68) Location -3/Research Parts ------- > --- POWER (2) -------- Light Particle Reactor > --- PROPULSION (4) --- Combat Antigrav System Combat Antigrav System Combat Antigrav System Combat Antigrav System > --- UTILITY (11) ----- Medium Storage Unit Small Battery Small Battery Advanced Signal Interpreter Advanced Signal Interpreter Melee Analysis Suite Advanced Target Analyzer Improved System Shield > --- WEAPON (4) ------- Gamma Bomb Array Lance > --- INVENTORY (10) --- Improved Heavy Treads Centrium Wheel Improved Antigrav System Improved Antigrav System Peak State ------------ > --- POWER ------------ Heavy Antimatter Reactor Quantum Reactor > --- PROPULSION ------- Armored Medium Treads Advanced Myomer Leg Advanced Myomer Leg Advanced Myomer Leg > --- UTILITY ---------- Advanced Heat Sink Improved Cooling System High-capacity Storage Unit Advanced Sensor Array Advanced Signal Interpreter Advanced Transmission Jammer Experimental Phase Shifter Centrium Medium Armor Plating Improved System Shield > --- WEAPON ----------- Plasma Rifle KE Penetrator Improved KE Penetrator Improved KE Penetrator > --- INVENTORY -------- Quantum Reactor Advanced Heat Sink Advanced Sensor Array Precision Matter Filter Weapon Cycler Phase Shifter Centrium Medium Armor Plating Centrium Medium Armor Plating Experimental Thermal Shield Force Field Improved System Backup Module Transdimensional Reconstructor Phase Gun Precision Rocket Launcher Scatter Rocket Array Heavy Pick [Rating: 136] Favorites ----------- Power Quantum Reactor Engine Ion Engine Power Core Light Nuclear Core Reactor Quantum Reactor Propulsion Medium Treads Treads Medium Treads Leg Advanced Myomer Leg Wheel Wheel Hover Unit Combat Antigrav System Flight Unit Field Propulsion Drive Utility Advanced Heat Sink Device Advanced Heat Sink Storage High-capacity Storage Unit Processor Advanced Signal Interpreter Hackware Improved System Shield Protection Centrium Medium Armor Plating Weapon Improved Heavy Machine Gun Energy Gun Advanced Variable Charge Gun Energy Cannon Heavy Ion Cannon Ballistic Gun Improved Heavy Machine Gun Launcher Precision Rocket Launcher Slashing Weapon Katana Piercing Weapon Heavy Pick Build | -11 -10 -9 -9 -8 -7 -6 -6 -6 -5 -5 -5 -5 -4 -4 -4 -4 -4 -4 -4 -3 -3 ------- Run | Scr Mat Mat Min Mat Fac Fac Ext Cet Fac Upp Upp Zhi Pro Fac Was Fac Upp Upp War Pro Res Slots Evolved 14 | . . 2 . 2 2 2 . . 2 . . . . 2 . . . . . . 2 Power 1 | . . . . . . . . . 1 . . . . . . . . . . . . Propulsion 2 | . . . . 1 . 1 . . . . . . . . . . . . . . . Utility 9 | . . 2 . . 2 . . . 1 . . . . 2 . . . . . . 2 Weapon 2 | . . . . 1 . 1 . . . . . . . . . . . . . . . Parts Attached 269 | 2 8 17 1 17 36 37 8 15 11 11 4 12 12 7 5 . . 1 2 5 58 Power 16 | . 1 1 . . 3 . 1 . 1 1 . . 1 . . . . . . . 7 Engine 4 | . 1 1 . . 1 . . . . . . . . . . . . . . . 1 Core 1 | . . . . . 1 . . . . . . . . . . . . . . . . Reactor 11 | . . . . . 1 . 1 . 1 1 . . 1 . . . . . . . 6 Propulsion 55 | 2 1 3 . 6 3 7 . 5 . 2 . 3 . 1 1 . . 1 . 1 19 Treads 25 | 1 . 2 . 3 3 7 . 5 . . . . . 1 . . . 1 . . 2 Leg 8 | . . . . 3 . . . . . . . 3 . . 1 . . . . . 1 Wheel 5 | 1 1 1 . . . . . . . 1 . . . . . . . . . . 1 Hover 10 | . . . . . . . . . . . . . . . . . . . . . 10 Flight 7 | . . . . . . . . . . 1 . . . . . . . . . 1 5 Utility 106 | . 4 11 . 4 17 8 4 5 7 3 2 7 4 5 2 . . . 1 . 22 Device 66 | . 3 11 . 4 8 4 4 1 6 3 1 5 3 5 1 . . . 1 . 6 Storage 6 | . 1 . . . 1 . . . . . . . . . . . . . . . 4 Processor 7 | . . . . . . . . 1 . . . . . . . . . . . . 6 Hackware 7 | . . . . . 5 . . 1 . . . . . . . . . . . . 1 Protection 20 | . . . . . 3 4 . 2 1 . 1 2 1 . 1 . . . . . 5 Artifact . | . . . . . . . . . . . . . . . . . . . . . . Weapon 92 | . 2 2 1 7 13 22 3 5 3 5 2 2 7 1 2 . . . 1 4 10 Energy Gun 18 | . 2 2 . 3 4 1 1 2 . . . . 1 . . . . . . . 2 Energy Cannon 20 | . . . . 2 4 6 . 1 . . . . 1 . 1 . . . 1 3 1 Ballistic Gun 24 | . . . . . 2 9 1 2 2 1 1 1 2 1 . . . . . . 2 Ballistic Cannon . | . . . . . . . . . . . . . . . . . . . . . . Launcher 18 | . . . 1 . 1 3 . . . 4 1 . 3 . 1 . . . . 1 3 Special Weapon . | . . . . . . . . . . . . . . . . . . . . . . Impact Weapon . | . . . . . . . . . . . . . . . . . . . . . . Slashing Weapon 6 | . . . . 2 2 2 . . . . . . . . . . . . . . . Piercing Weapon 6 | . . . . . . 1 1 . 1 . . 1 . . . . . . . . 2 Special Melee Weapon . | . . . . . . . . . . . . . . . . . . . . . . Unidentified Prototypes 25 | . . . . . 5 2 . 3 1 . . 5 . . 2 . . . 2 1 4 Corrupted Parts 7 | . . . . . 1 . . 2 . . . . . . 2 . . . . . 2 System Corruption 36 | . . . . . 4 . . 13 . . . . . . 13 . . . . . 6 Parts Lost 77 | . . . . . 6 7 1 7 1 2 . . 6 . 5 . . 1 . 8 33 Power 10 | . . . . . 1 . 1 . . 1 . . 1 . 1 . . . . . 5 Propulsion 20 | . . . . . . 1 . 3 1 1 . . 1 . 2 . . . . 4 7 Utility 29 | . . . . . 5 3 . 2 . . . . 1 . . . . 1 . 1 16 Weapon 18 | . . . . . . 3 . 2 . . . . 3 . 2 . . . . 3 5 Highest Loss Streak 6 | . . . . . 4 2 1 3 1 2 . . 3 . 4 . . 1 . 6 6 Average Slot Usage (%) 86 | . 99 100 100 99 90 94 99 98 98 95 100 99 94 95 67 31 31 29 31 18 50 Engine 2 | . 14 11 11 9 2 . . . . . . . . . . . . . . . . Reactor 5 | . . . . . 3 6 5 6 11 11 11 11 9 10 5 . . . . . 2 Treads 13 | . 14 11 11 8 22 25 26 25 21 14 11 7 2 1 2 . . . 5 1 . Leg 4 | . . . . 17 . . . . . . . 9 17 15 12 10 10 10 10 2 1 Wheel 1 | . 14 11 11 . . . . . . . 5 2 . . . . . . . . . Device 13 | . 13 33 33 27 17 13 13 11 10 11 10 8 11 20 17 10 10 7 5 1 4 Storage 5 | . 14 11 11 9 7 6 6 6 5 5 5 5 5 5 2 . . . . . 2 Processor 3 | . . . . . . . . 1 5 5 5 5 5 5 5 5 5 5 5 5 14 Hackware 6 | . . . . . 14 8 6 9 9 5 5 5 5 5 5 5 5 5 5 5 2 Protection 6 | . . . . . 3 9 13 7 7 11 11 12 10 10 5 . . . . . 4 Energy Gun 8 | . 28 22 19 16 8 6 6 8 11 11 11 11 6 5 2 . . . . . . Energy Cannon 1 | . . . . 8 3 2 . . . . . . . . . . . . . 1 . Ballistic Gun 6 | . . . . . . 9 19 16 9 10 10 7 10 14 6 . . . . . . Naked Turns . | . . . . . . . . . . . . . . . . . . . . . . Heaviest Build 125 | 11 30 36 34 39 78 100 87 92 115 117 125 123 121 118 120 2 2 2 1 14 49 Greatest Support 120 | 10 16 16 12 84 100 118 118 120 112 82 10 90 90 90 90 3 3 3 3 7 70 Greatest Overweight (x) 12 | 1 2 2 2 2 1 1 . . 1 11 12 12 1 1 1 . . . . 4 2 Average Overweight (x) . | 1 1 1 2 . . . . . . 1 11 5 1 1 . . . . . . . Largest Inventory Capacity 20 | 8 15 15 15 15 20 20 20 20 20 20 20 20 20 20 20 5 5 5 5 5 10 Average Capacity 16 | 8 10 15 15 15 17 20 20 20 20 20 20 20 20 20 11 5 5 5 5 5 7 Most Carried 20 | 6 10 15 15 15 20 20 20 20 20 20 20 20 20 17 17 5 5 5 5 5 9 Average Carried 14 | 5 5 13 15 14 16 18 19 17 18 19 20 19 17 14 9 5 5 4 4 2 4 Final Capacity 20 | 8 15 15 15 15 20 20 20 20 20 20 20 20 20 20 5 5 5 5 5 5 10 Final Carried 20 | 4 9 15 15 15 20 20 20 19 20 20 20 20 16 15 5 5 5 4 5 2 5 Class Distribution -------------------- 30% | Mutant 17% | Scavenger-Tank 17% | Scavenger-Mutant 12% | Tank 6% | Hacker-Tank 4% | Skirmisher 3% | Hacker-Gunner Dominant Class ---------------- Mutant | -10/Materials Mutant | -9/Materials Mutant | -9/Mines Mutant | -8/Materials Hacker-Gunner | -7/Factory Tank | -6/Factory Tank | -6/Extension Tank | -6/Cetus Scavenger-Tank | -5/Factory Scavenger-Tank | -5/Upper Caves Scavenger-Mutant | -5/Upper Caves Scavenger-Mutant | -5/Zhirov Scavenger-Tank | -4/Proximity Caves Scavenger-Tank | -4/Factory Scavenger-Mutant | -4/Waste Scavenger-Mutant | -4/Factory Mutant | -4/Upper Caves Mutant | -4/Upper Caves Mutant | -4/Warlord Mutant | -3/Proximity Caves Mutant | -3/Research Resources | -11 -10 -9 -9 -8 -7 -6 -6 -6 -5 -5 -5 -5 -4 -4 -4 -4 -4 -4 -4 -3 -3 ----------- Run | Scr Mat Mat Min Mat Fac Fac Ext Cet Fac Upp Upp Zhi Pro Fac Was Fac Upp Upp War Pro Res Matter Collected 4548 | 200 100 126 . 224 481 586 455 442 161 257 75 211 142 111 . . . 98 77 191 611 Remotely . | . . . . . . . . . . . . . . . . . . . . . . Salvage Created 6927 | . 285 240 . 479 1085 1194 571 529 136 261 95 484 221 111 . . . . . 177 1059 Parts 317 | . 24 24 . 26 58 46 17 23 1 19 2 7 6 4 . . . . . 5 55 Haulers Intercepted 2 | . . . . 2 . . . . . . . . . . . . . . . . . Recyclers Shooed 3 | . . . . . 2 1 . . . . . . . . . . . . . . . Parts Field Recycled . | . . . . . . . . . . . . . . . . . . . . . . Retrieved Matter . | . . . . . . . . . . . . . . . . . . . . . . Parts Self-Destructed 74 | . . . . . . . . . . 12 1 6 6 . . . . . 45 4 . Prevented 7 | . . . . . . . . . . . . . . . . . . . 7 . . Kills | -11 -10 -9 -9 -8 -7 -6 -6 -6 -5 -5 -5 -5 -4 -4 -4 -4 -4 -4 -4 -3 -3 ------- Run | Scr Mat Mat Min Mat Fac Fac Ext Cet Fac Upp Upp Zhi Pro Fac Was Fac Upp Upp War Pro Res Combat Hostiles Destroyed 127 | . 9 6 . 14 18 24 9 10 2 5 5 . 4 . . . . . . 5 16 Melee 10 | . . . . . . . . . . . . . . . . . . . . . 10 Guns 82 | . 9 6 . 12 10 17 9 9 1 1 . . 2 . . . . . . . 6 Cannons 11 | . . . . 1 3 4 . 1 . . . . . . . . . . . 2 . AOE 19 | . . . . . 4 2 . . . 4 5 . 1 . . . . . . 3 . Classes Destroyed 16 | . 3 2 . 1 6 2 . . . 1 1 . . . . . . . . . . Worker 3 | . . . . . . 3 . . . . . . . . . . . . . . . Builder 1 | . . . . . 1 . . . . . . . . . . . . . . . . Tunneler 1 | . . . . . . 1 . . . . . . . . . . . . . . . Hauler 2 | . . . . 2 . . . . . . . . . . . . . . . . . Recycler 6 | . . . . . 2 1 1 . . . . . . 1 . . . . . . 1 Operator 4 | . . 1 . . 2 1 . . . . . . . . . . . . . . . Watcher 6 | . 2 1 . . 2 1 . . . . . . . . . . . . . . . Swarmer 44 | . 6 3 . 10 4 4 3 . . 4 5 . . . . . . . . . 5 Grunt 32 | . 3 . . 3 5 14 . 3 . . . . 1 . . . . . . 2 1 Brawler 3 | . . . . . 2 . . 1 . . . . . . . . . . . . . Duelist 2 | . . . . . 2 . . . . . . . . . . . . . . . . Sentry 17 | . . 3 . 1 1 1 6 . 2 . . . 1 . . . . . . 1 1 Hunter 11 | . . . . . 1 2 . 1 . . . . 2 . . . . . . 2 3 Programmer 12 | . . . . . 3 3 . . . . . . . . . . . . . . 6 Behemoth 1 | . . . . . . . . . . 1 . . . . . . . . . . . Cetus Guard 5 | . . . . . . . . 5 . . . . . . . . . . . . . Decomposer 1 | . . . . . . . . . . 1 . . . . . . . . . . . Samaritan 1 | . . . . . . . . . . . 1 . . . . . . . . . . Best Kill Streak 7 | . 7 3 . 4 6 6 3 4 2 4 5 . 2 1 . . . . . 4 4 Combat Bots Only 6 | . 6 2 . 4 4 5 3 4 2 4 5 . 2 . . . . . . 4 4 Max Kills in Single Turn 4 | . 1 1 . 1 2 2 2 2 1 3 4 . 1 1 . . . . . 3 1 Gunslinging 1 | . . . . . . . 1 1 . . . . . . . . . . . . . Exploded 4 | . . . . . 2 1 . . . 3 4 . 1 . . . . . . 3 . Melee 1 | . . . . . . . . . . . . . . . . . . . . . 1 Uniques/NPCs Destroyed . | . . . . . . . . . . . . . . . . . . . . . . Combat | -11 -10 -9 -9 -8 -7 -6 -6 -6 -5 -5 -5 -5 -4 -4 -4 -4 -4 -4 -4 -3 -3 -------- Run | Scr Mat Mat Min Mat Fac Fac Ext Cet Fac Upp Upp Zhi Pro Fac Was Fac Upp Upp War Pro Res Damage Taken 16670 | . 215 233 . 531 988 1884 414 1802 738 906 158 . 1057 . 244 . 38 466 . 1303 5693 Core 2962 | . 58 38 . 68 129 117 36 67 26 83 30 . 65 . 97 . 21 186 . 633 1308 Absorbed by Shields 153 | . . . . . . . 153 . . . . . . . . . . . . . . Core Remaining (%) 74 | 100 76 . 90 87 81 . . 74 . . . . 79 . . . . . . 10 . Volleys Fired 321 | . 25 18 . 36 19 55 18 39 7 21 9 1 22 6 2 . . . . 16 27 Largest 4 | . 2 2 . 3 3 4 4 4 4 4 1 1 4 1 1 . . . . 1 2 Hottest 240 | . 100 126 . 188 184 201 125 240 211 229 81 33 224 75 50 . . . . 50 105 Shots Fired 783 | . 50 36 . 77 76 164 72 115 27 57 9 1 42 6 2 . . . . 16 33 Gun 674 | . 50 36 . 72 57 127 72 106 27 53 6 1 29 6 . . . . . . 32 Cannon 78 | . . . . 5 12 32 . 9 . . . . 5 . . . . . . 14 1 Launcher 31 | . . . . . 7 5 . . . 4 3 . 8 . 2 . . . . 2 . Special . | . . . . . . . . . . . . . . . . . . . . . . Kinetic 292 | . . . . . . 80 54 77 14 24 . 1 17 . . . . . . . 25 Thermal 416 | . 50 36 . 77 68 65 18 29 13 29 6 . 12 6 . . . . . . 7 Explosive 29 | . . . . . 7 5 . . . 4 3 . 8 . 2 . . . . . . Electromagnetic 30 | . . . . . 1 14 . 9 . . . . 5 . . . . . . . 1 Entropic 16 | . . . . . . . . . . . . . . . . . . . . 16 . Robot Hit Streak 19 | . 14 10 . 18 10 13 14 13 5 11 18 19 7 2 4 . . . . 4 9 Robot Miss Streak 10 | . 3 2 . 3 10 5 6 5 1 4 . . 7 4 1 . . . . 2 2 Penetration Max 1 | . . . . . . . . . . . . 1 1 . . . . . . . . Secondary Targets 9 | . . . . 2 . . 2 4 1 . . . . . . . . . . . . Max Gunslinging Chain 1 | . . . . 1 . . 1 1 1 . . . . . . . . . . . . Autonomous 47 | . . . . . 39 8 . . . . . . . . . . . . . . . Shots Hit Robots 562 | . 29 25 . 44 62 111 45 73 21 40 8 10 22 2 2 . . . . 9 59 Core Hits 302 | . 14 10 . 21 42 67 26 33 5 19 7 7 11 2 . . . . . 7 31 Critical Kills 6 | . . . . . . 1 . 2 . . . 1 1 . . . . . . . 1 Critical Parts Destroyed 6 | . . . . . . . 2 . . 1 . . 2 . . . . . . . 1 Critical Strikes 31 | . . 1 . 3 3 2 2 3 1 4 . 1 4 1 . . . . . 1 5 Burn 13 | . . 1 . 3 3 . . . 1 2 . . 1 1 . . . . . . 1 Destroy 14 | . . . . . . 1 2 3 . 2 . 1 3 . . . . . . . 2 Corrupt 1 | . . . . . . 1 . . . . . . . . . . . . . . . Puncture 2 | . . . . . . . . . . . . . . . . . . . . . 2 Sunder 1 | . . . . . . . . . . . . . . . . . . . . 1 . Melee Attacks 96 | . . . . 1 8 10 13 . 7 . . 9 . . . . . . . . 48 Impact . | . . . . . . . . . . . . . . . . . . . . . . Slashing 19 | . . . . 1 8 10 . . . . . . . . . . . . . . . Piercing 77 | . . . . . . . 13 . 7 . . 9 . . . . . . . . 48 Sneak Attacks 5 | . . . . . 3 1 . . . . . . . . . . . . . . 1 Combat Hostiles . | . . . . . . . . . . . . . . . . . . . . . . Follow-up Attacks . | . . . . . . . . . . . . . . . . . . . . . . Damage Inflicted 18773 | . 368 470 . 731 2590 3866 1133 1877 529 1225 676 869 881 45 116 . . . . 1252 2145 Guns 10878 | . 368 470 . 707 1602 2157 1133 1666 529 938 141 46 425 45 . . . . . . 651 Cannons 1766 | . . . . 24 249 599 . 211 . . . . 79 . . . . . . 604 . Explosions 3365 | . . . . . 383 1019 . . . 287 535 . 377 . 116 . . . . 648 . Melee 2755 | . . . . . 347 91 . . . . . 823 . . . . . . . . 1494 Ramming 9 | . . . . . 9 . . . . . . . . . . . . . . . . Kinetic 4908 | . . . . . . 1273 782 1186 328 462 . 46 291 . . . . . . . 540 Thermal 6472 | . 368 470 . 731 1820 1144 351 480 201 476 141 . 134 45 . . . . . . 111 Explosive 2717 | . . . . . 383 1019 . . . 287 535 . 377 . 116 . . . . . . Electromagnetic 660 | . . . . . 31 339 . 211 . . . . 79 . . . . . . . . Impact . | . . . . . . . . . . . . . . . . . . . . . . Slashing 438 | . . . . . 347 91 . . . . . . . . . . . . . . . Piercing 2317 | . . . . . . . . . . . . 823 . . . . . . . . 1494 Entropic 1252 | . . . . . . . . . . . . . . . . . . . . 1252 . Highest Corruption 28 | . . . . . 11 3 . 13 . . . . . 2 28 28 28 28 28 . 25 Average Corruption 8 | . . . . . 8 2 . 7 . . . . . 2 8 28 28 28 28 . 10 Corruption Purged 3 | . . . . . . 3 . . . . . . . . . . . . . . . Effects 117 | . . . . . 35 10 . 10 . . . . . 2 4 1 2 11 1 . 41 Message Errors 27 | . . . . . 6 5 . 1 . . . . . 1 2 1 1 3 . . 7 Matter Fused 31 | . . . . . 11 4 . 1 . . . . . . 1 . . 3 1 . 10 Heat Flow Errors 14 | . . . . . 7 . . 2 . . . . . . . . . 1 . . 4 Energy Discharges 13 | . . . . . 7 1 . 1 . . . . . 1 . . . 1 . . 2 Parts Rejected 3 | . . . . . . . . . . . . . . . . . . . . . 3 Data Loss (minor) 10 | . . . . . 2 . . 1 . . . . . . 1 . 1 . . . 5 Data Loss (major) 6 | . . . . . 2 . . . . . . . . . . . . 1 . . 3 Alerts 1 | . . . . . . . . . . . . . . . . . . . . . 1 Misdirections 9 | . . . . . . . . 2 . . . . . . . . . 2 . . 5 Weapon Failures 3 | . . . . . . . . 2 . . . . . . . . . . . . 1 Overload Shots 2 | . . . . . . . . 2 . . . . . . . . . . . . . Overflow Damage 401 | . . . . . 155 126 . 7 . . 53 55 . . . . . . . . 5 Projectiles 24 | . . . . . . 17 . 7 . . . . . . . . . . . . . Explosions 111 | . . . . . 10 48 . . . . 53 . . . . . . . . . . Melee 266 | . . . . . 145 61 . . . . . 55 . . . . . . . . 5 Knockbacks . | . . . . . . . . . . . . . . . . . . . . . . Impact . | . . . . . . . . . . . . . . . . . . . . . . Kinetic . | . . . . . . . . . . . . . . . . . . . . . . Secondary . | . . . . . . . . . . . . . . . . . . . . . . Self-Inflicted Damage 387 | . . . . . 100 91 . . . . . . . . 58 . . . . 138 . Shots 9 | . . . . . 5 1 . . . . . . . . 2 . . . . 1 . Rammed . | . . . . . . . . . . . . . . . . . . . . . . Targets Rammed 1 | . . . . . 1 . . . . . . . . . . . . . . . . Kicked . | . . . . . . . . . . . . . . . . . . . . . . Crushed 1 | . . . . . 1 . . . . . . . . . . . . . . . . Highest Temperature 324 | . 288 101 . 71 222 199 18 312 324 313 . . 5 . . . . 46 . . 117 Average Temperature 82 | . 90 35 . 30 92 82 7 110 127 145 . . 3 . . . . 46 . . 52 Received Heat Transfer 2082 | . 60 45 . 126 309 484 58 270 153 132 . . 51 . . . 9 18 . 199 168 Effects 5 | . 2 . . . . . . 2 . 1 . . . . . . . . . . . Energy Bleed 2 | . . . . . . . . 1 . 1 . . . . . . . . . . . Interference 2 | . 2 . . . . . . . . . . . . . . . . . . . . Damage (minor) 1 | . . . . . . . . 1 . . . . . . . . . . . . . Siege Activations . | . . . . . . . . . . . . . . . . . . . . . . Robots Corrupted . | . . . . . . . . . . . . . . . . . . . . . . Combat Hostiles . | . . . . . . . . . . . . . . . . . . . . . . Parts Fried 7 | . . . . . . 6 . . . . . . 1 . . . . . . . . Impact Corruptions . | . . . . . . . . . . . . . . . . . . . . . . Robots Melted 5 | . . . . 1 1 1 . . 1 . . . 1 . . . . . . . . Combat Hostiles 5 | . . . . 1 1 1 . . 1 . . . 1 . . . . . . . . Parts Melted 28 | . 3 . . 6 7 1 . 1 1 1 . . 3 1 . . . . . . 4 Heat Transferred 12070 | . 1038 999 . 1887 2286 1908 734 814 370 888 222 . 374 200 . . . . . . 350 Parts Sabotaged . | . . . . . . . . . . . . . . . . . . . . . . Parts Stolen . | . . . . . . . . . . . . . . . . . . . . . . Parts Stripped . | . . . . . . . . . . . . . . . . . . . . . . Power Chain Reactions . | . . . . . . . . . . . . . . . . . . . . . . Missiles Intercepted . | . . . . . . . . . . . . . . . . . . . . . . Alert | -11 -10 -9 -9 -8 -7 -6 -6 -6 -5 -5 -5 -5 -4 -4 -4 -4 -4 -4 -4 -3 -3 ------- Run | Scr Mat Mat Min Mat Fac Fac Ext Cet Fac Upp Upp Zhi Pro Fac Was Fac Upp Upp War Pro Res Peak Influence 749 | . 162 225 17 265 749 489 386 457 394 . . . . 51 15 18 . . . . 248 Initial 312 | . . 68 17 6 62 312 172 42 255 . . . . 31 . 3 . . . . 47 Average 195 | . 55 110 17 88 414 293 94 215 309 . . . . 31 5 4 . . . . 99 Maximum Alert Level 3 | . . 1 . 1 3 2 1 2 1 . . . . . . . . . . . 1 Low Security (%) 66 | 100 100 92 100 96 37 20 96 55 . . . . . 100 100 100 . . . . 94 Level 1 19 | . . 7 . 3 5 66 3 29 100 . . . . . . . . . . . 5 Level 2 9 | . . . . . 36 13 . 15 . . . . . . . . . . . . . Level 3 3 | . . . . . 20 . . . . . . . . . . . . . . . . Level 4 . | . . . . . . . . . . . . . . . . . . . . . . Level 5 . | . . . . . . . . . . . . . . . . . . . . . . High Security . | . . . . . . . . . . . . . . . . . . . . . . Max Security . | . . . . . . . . . . . . . . . . . . . . . . Squads Dispatched 28 | . 2 1 . 2 10 7 1 1 1 . . . . . . . . . . . 3 Investigation 5 | . 2 . . . 1 1 . 1 . . . . . . . . . . . . . Extermination 8 | . . . . . 3 2 . . 1 . . . . . . . . . . . 2 Reinforcement 11 | . . 1 . 2 3 3 1 . . . . . . . . . . . . . 1 Assault 3 | . . . . . 3 . . . . . . . . . . . . . . . . Garrison 1 | . . . . . . 1 . . . . . . . . . . . . . . . Intercept . | . . . . . . . . . . . . . . . . . . . . . . Construction Impeded 2 | . . . . . . 2 . . . . . . . . . . . . . . . Haulers Reinforced 1 | . . . . . 1 . . . . . . . . . . . . . . . . Cargo Convoy Interrupts 1 | . . . . . 1 . . . . . . . . . . . . . . . . Stealth | -11 -10 -9 -9 -8 -7 -6 -6 -6 -5 -5 -5 -5 -4 -4 -4 -4 -4 -4 -4 -3 -3 --------- Run | Scr Mat Mat Min Mat Fac Fac Ext Cet Fac Upp Upp Zhi Pro Fac Was Fac Upp Upp War Pro Res Distress Signals 10 | . 1 2 . 1 1 . 2 2 . . . . . . . . . . 1 . . Communications Jammed . | . . . . . . . . . . . . . . . . . . . . . . Distress Signals . | . . . . . . . . . . . . . . . . . . . . . . Times Spotted 238 | . 14 13 . 21 30 33 23 16 2 5 2 . 16 1 6 . 4 10 . 7 35 Peak Tracking Total 8 | . 5 3 . 5 5 5 6 5 2 2 5 . 3 1 5 . 4 5 8 5 7 Tactical Retreats 24 | . 1 . . 2 2 1 . . . 3 . . 9 . . . . 2 . . 4 Traps | -11 -10 -9 -9 -8 -7 -6 -6 -6 -5 -5 -5 -5 -4 -4 -4 -4 -4 -4 -4 -3 -3 ------- Run | Scr Mat Mat Min Mat Fac Fac Ext Cet Fac Upp Upp Zhi Pro Fac Was Fac Upp Upp War Pro Res Traps Triggered 10 | . 2 . . . . 2 1 . . . . . . 2 . . . . . . 3 Indirectly . | . . . . . . . . . . . . . . . . . . . . . . Trap Hack Attempts . | . . . . . . . . . . . . . . . . . . . . . . Triggered . | . . . . . . . . . . . . . . . . . . . . . . Disarmed . | . . . . . . . . . . . . . . . . . . . . . . Reprogrammed . | . . . . . . . . . . . . . . . . . . . . . . Reused . | . . . . . . . . . . . . . . . . . . . . . . Traps Extracted . | . . . . . . . . . . . . . . . . . . . . . . Installed . | . . . . . . . . . . . . . . . . . . . . . . Triggered 16 | . . . . . 4 . . . . . . . 1 . . . 2 . 8 1 . Machines | -11 -10 -9 -9 -8 -7 -6 -6 -6 -5 -5 -5 -5 -4 -4 -4 -4 -4 -4 -4 -3 -3 ---------- Run | Scr Mat Mat Min Mat Fac Fac Ext Cet Fac Upp Upp Zhi Pro Fac Was Fac Upp Upp War Pro Res Machines Disabled 17 | . . . . . 7 3 1 3 1 . . . . . . . . . . . 2 Max in Single Turn 4 | . . . . . 4 2 1 1 1 . . . . . . . . . . . 1 Garrison Access 1 | . . . . . . 1 . . . . . . . . . . . . . . . Machines Sabotaged . | . . . . . . . . . . . . . . . . . . . . . . Garrisons Compromised 1 | . . . . . 1 . . . . . . . . . . . . . . . . Overloaded Fab Kills . | . . . . . . . . . . . . . . . . . . . . . . Fab Network Shutdowns . | . . . . . . . . . . . . . . . . . . . . . . Hacking | -11 -10 -9 -9 -8 -7 -6 -6 -6 -5 -5 -5 -5 -4 -4 -4 -4 -4 -4 -4 -3 -3 --------- Run | Scr Mat Mat Min Mat Fac Fac Ext Cet Fac Upp Upp Zhi Pro Fac Was Fac Upp Upp War Pro Res Machines Accessed 56 | . 2 2 . 4 4 9 15 1 . . . 7 . 2 . . . 1 7 . 2 Terminals 34 | . 2 1 . 3 2 7 15 1 . . . . . 1 . . . . . . 2 Fabricators 2 | . . . . . 1 . . . . . . . . 1 . . . . . . . Repair Stations 2 | . . . . 1 1 . . . . . . . . . . . . . . . . Recycling Units 1 | . . . . . . 1 . . . . . . . . . . . . . . . Scanalyzers 1 | . . 1 . . . . . . . . . . . . . . . . . . . Garrison Access 1 | . . . . . . 1 . . . . . . . . . . . . . . . Total Hacks 144 | . 3 7 . 10 8 19 30 3 . . . 46 . 3 . . . 1 8 . 6 Successful 101 | . 1 7 . 5 4 7 18 . . . . 46 . 1 . . . 1 8 . 3 Failed 43 | . 2 . . 5 4 12 12 3 . . . . . 2 . . . . . . 3 Catastrophic 5 | . . . . 1 1 . 1 1 . . . . . 1 . . . . . . . Database Lockouts . | . . . . . . . . . . . . . . . . . . . . . . Manual 34 | . 3 2 . 7 2 9 8 1 . . . . . . . . . . . . 2 Terminals 75 | . 3 2 . 8 5 16 30 3 . . . . . 2 . . . . . . 6 Fabricators 2 | . . . . . 1 . . . . . . . . 1 . . . . . . . Repair Stations 4 | . . . . 2 2 . . . . . . . . . . . . . . . . Recycling Units 2 | . . . . . . 2 . . . . . . . . . . . . . . . Scanalyzers 5 | . . 5 . . . . . . . . . . . . . . . . . . . Garrison Access 1 | . . . . . . 1 . . . . . . . . . . . . . . . Terminal Hacks 83 | . . 1 . 2 2 4 17 . . . . 46 . 1 . . . 1 8 . 1 Record 40 | . . . . . . . . . . . . 34 . . . . . . 6 . . Part Schematic 4 | . . . . . . . . . . . . 4 . . . . . . . . . Robot Analysis 4 | . . . . . . . . . . . . 4 . . . . . . . . . Prototype ID Bank 5 | . . . . . . . 1 . . . . 4 . . . . . . . . . Open Door 12 | . . . . . . . 9 . . . . . . . . . . 1 2 . . Branch Access Points 2 | . . . . . . 1 . . . . . . . . . . . . . . 1 Terminal Index 1 | . . . . . . . 1 . . . . . . . . . . . . . . Alert Level 2 | . . . . . 1 . . . . . . . . 1 . . . . . . . Unreport Threat 9 | . . 1 . 1 1 2 4 . . . . . . . . . . . . . . Locate Traps 1 | . . . . . . . 1 . . . . . . . . . . . . . . Zone Layout 3 | . . . . 1 . 1 1 . . . . . . . . . . . . . . Fabricator Hacks 1 | . . . . . 1 . . . . . . . . . . . . . . . . Build 1 | . . . . . 1 . . . . . . . . . . . . . . . . Repair Station Hacks 3 | . . . . 2 1 . . . . . . . . . . . . . . . . Scan Component 2 | . . . . 1 1 . . . . . . . . . . . . . . . . Repair 1 | . . . . 1 . . . . . . . . . . . . . . . . . Recycling Unit Hacks . | . . . . . . . . . . . . . . . . . . . . . . Scanalyzer 5 | . . 5 . . . . . . . . . . . . . . . . . . . Insert Component 2 | . . 2 . . . . . . . . . . . . . . . . . . . Analyze 3 | . . 3 . . . . . . . . . . . . . . . . . . . Garrison Access Hacks 1 | . . . . . . 1 . . . . . . . . . . . . . . . Seal Access 1 | . . . . . . 1 . . . . . . . . . . . . . . . Unauthorized Hacks 8 | . 1 1 . 1 . 2 1 . . . . . . . . . . . . . 2 Terminals 8 | . 1 1 . 1 . 2 1 . . . . . . . . . . . . . 2 Botnet 7 | . 1 1 . 1 . 1 1 . . . . . . . . . . . . . 2 Search 1 | . . . . . . 1 . . . . . . . . . . . . . . . Fabricators . | . . . . . . . . . . . . . . . . . . . . . . Repair Stations . | . . . . . . . . . . . . . . . . . . . . . . Recycling Units . | . . . . . . . . . . . . . . . . . . . . . . Scanalyzers . | . . . . . . . . . . . . . . . . . . . . . . Garrison Access . | . . . . . . . . . . . . . . . . . . . . . . Data Cores Recovered 1 | . . . . . 1 . . . . . . . . . . . . . . . . Used . | . . . . . . . . . . . . . . . . . . . . . . Hacking Detections 32 | . 2 2 . 4 3 7 9 1 . . . . . 2 . . . . . . 2 Full Trace Events 2 | . . . . . 1 . . 1 . . . . . . . . . . . . . Feedback Events 1 | . . . . . 1 . . . . . . . . . . . . . . . . Corruption 1 | . . . . . 1 . . . . . . . . . . . . . . . . Feedback Blocked . | . . . . . . . . . . . . . . . . . . . . . . Robot Schematics Acquired . | . . . . . . . . . . . . . . . . . . . . . . Robots Built . | . . . . . . . . . . . . . . . . . . . . . . Matter . | . . . . . . . . . . . . . . . . . . . . . . Time . | . . . . . . . . . . . . . . . . . . . . . . Total Robot Build Rating . | . . . . . . . . . . . . . . . . . . . . . . Part Schematics Acquired 6 | . . 2 . . . . . . . . . 4 . . . . . . . . . Parts Built 1 | . . . . . 1 . . . . . . . . . . . . . . . . Matter 168 | . . . . . 168 . . . . . . . . . . . . . . . . Time 28 | . . . . . 28 . . . . . . . . . . . . . . . . Total Part Build Rating 4 | . . . . . 4 . . . . . . . . . . . . . . . . Parts Repaired 1 | . . . . 1 . . . . . . . . . . . . . . . . . Time 38 | . . . . 38 . . . . . . . . . . . . . . . . . Parts Recycled . | . . . . . . . . . . . . . . . . . . . . . . Recycled Matter . | . . . . . . . . . . . . . . . . . . . . . . Retrieved Matter . | . . . . . . . . . . . . . . . . . . . . . . Retrieved Components . | . . . . . . . . . . . . . . . . . . . . . . Parts Scanalyzed 2 | . . 2 . . . . . . . . . . . . . . . . . . . Part Schematics Acquired 2 | . . 2 . . . . . . . . . . . . . . . . . . . Parts Damaged . | . . . . . . . . . . . . . . . . . . . . . . Bothacking | -11 -10 -9 -9 -8 -7 -6 -6 -6 -5 -5 -5 -5 -4 -4 -4 -4 -4 -4 -4 -3 -3 ------------ Run | Scr Mat Mat Min Mat Fac Fac Ext Cet Fac Upp Upp Zhi Pro Fac Was Fac Upp Upp War Pro Res Used RIF Installer . | . . . . . . . . . . . . . . . . . . . . . . Robots Hacked . | . . . . . . . . . . . . . . . . . . . . . . Non-combat . | . . . . . . . . . . . . . . . . . . . . . . Combat . | . . . . . . . . . . . . . . . . . . . . . . Robot Hacks Applied . | . . . . . . . . . . . . . . . . . . . . . . Relay Couplers Released 7 | . . . . . . 4 . . . . . . . . . . . . . . 3 Programmers 7 | . . . . . . 4 . . . . . . . . . . . . . . 3 Robots Rewired . | . . . . . . . . . . . . . . . . . . . . . . Allies Hacked . | . . . . . . . . . . . . . . . . . . . . . . Hacks Repelled . | . . . . . . . . . . . . . . . . . . . . . . Allies | -11 -10 -9 -9 -8 -7 -6 -6 -6 -5 -5 -5 -5 -4 -4 -4 -4 -4 -4 -4 -3 -3 -------- Run | Scr Mat Mat Min Mat Fac Fac Ext Cet Fac Upp Upp Zhi Pro Fac Was Fac Upp Upp War Pro Res Total Allies 32 | . . . . . 18 . 12 2 . . . . . . . . . . . . . Largest Group 18 | . . . . . 18 . 10 5 3 . . . . . . . . . . . . Highest-Rated Group 715 | . . . . . 715 . 383 297 292 . . . . . . . . . . . . Highest-Rated Ally 156 | . . . . . 74 . 156 149 107 . . . . . . . . . . . . Total Orders . | . . . . . . . . . . . . . . . . . . . . . . Ally Attacks 168 | . . . . . 27 . 71 52 18 . . . . . . . . . . . . Total Damage 4227 | . . . . . 412 . 1507 1657 651 . . . . . . . . . . . . Kills 33 | . . . . . 6 . 15 9 3 . . . . . . . . . . . . Allies Corrupted . | . . . . . . . . . . . . . . . . . . . . . . Allies Melted . | . . . . . . . . . . . . . . . . . . . . . . Intel | -11 -10 -9 -9 -8 -7 -6 -6 -6 -5 -5 -5 -5 -4 -4 -4 -4 -4 -4 -4 -3 -3 ------- Run | Scr Mat Mat Min Mat Fac Fac Ext Cet Fac Upp Upp Zhi Pro Fac Was Fac Upp Upp War Pro Res Robot Analysis Total 4 | . . . . . . . . . . . . 4 . . . . . . . . . Derelict Logs Recovered 6 | . . . . . . . . . . 1 2 . . . . . 1 2 . . . Drone Launches . | . . . . . . . . . . . . . . . . . . . . . . Drone Recoveries . | . . . . . . . . . . . . . . . . . . . . . . Exploration | -11 -10 -9 -9 -8 -7 -6 -6 -6 -5 -5 -5 -5 -4 -4 -4 -4 -4 -4 -4 -3 -3 ------------- Run | Scr Mat Mat Min Mat Fac Fac Ext Cet Fac Upp Upp Zhi Pro Fac Was Fac Upp Upp War Pro Res Turns Passed 12565 | 3 526 472 110 894 1638 1538 995 359 288 782 880 491 752 464 121 13 111 182 445 264 1237 Spaces Moved 7998 | 1 328 261 83 479 844 750 517 146 117 270 349 196 339 213 121 25 222 358 848 357 1174 Core 1880 | . . . . . . . . . . . . . . . 90 25 222 358 848 254 83 Treads 2820 | . . . . 161 844 750 517 146 117 266 . . . . . . . . . . 19 Legs 1013 | . . . . 306 . . . . . . . 124 339 213 31 . . . . . . Wheels 1139 | 1 328 261 83 12 . . . . . 4 349 72 . . . . . . . . 29 Hover 709 | . . . . . . . . . . . . . . . . . . . . . 709 Flight 437 | . . . . . . . . . . . . . . . . . . . . 103 334 Fastest Speed 40 | 95 95 115 120 120 160 156 160 156 156 245 245 200 200 200 50 50 50 50 50 45 40 Average Speed 127 | 95 101 120 120 133 160 161 160 157 188 256 245 222 200 200 84 50 50 50 50 58 74 Slowest Speed 360 | 95 115 130 120 260 260 263 160 160 256 260 260 360 200 200 200 50 50 50 50 250 230 Overloaded Moves . | . . . . . . . . . . . . . . . . . . . . . . Propulsion Burnouts . | . . . . . . . . . . . . . . . . . . . . . . Robots Hopped 1 | . . . . . . . . . . . . . . . . . . . . . 1 Cave-ins Triggered . | . . . . . . . . . . . . . . . . . . . . . . Teleports 1 | . . . . . . . . . . . . . . . 1 . . . . . . Exploration Rate (%) 40 | 2 43 32 24 50 24 21 65 69 3 39 47 62 57 6 85 1 47 52 91 56 23 Regions Visited 21 Branch Regions 11 Pre-discovered Areas 4 | . . . . . . . . . . . 1 3 . . . . . . . . . Known Exits Taken 12 | . . . . . . 1 . 1 1 1 1 1 1 . . 1 1 1 1 1 . Unknown Exits Taken 7 | 1 1 1 1 1 1 . 1 . . . . . . . . . . . . . . Scrap Searched 8 | . . . . . . . . . . 1 1 . 3 . . . 1 . . 2 . Spaces Dug 70 | . . . . 1 5 9 10 . 3 37 . . . . . . . . . . 5 Terrain Destroyed 385 | . . . . 3 54 49 10 2 6 83 21 . 68 . 9 . . . . 75 5 Melee 29 | . . . . 1 1 9 10 . 3 . . . . . . . . . . . 5 Projectile 58 | . . . . 2 25 12 . 2 3 8 . . 3 . . . . . . 3 . AOE 298 | . . . . . 28 28 . . . 75 21 . 65 . 9 . . . . 72 . Terrain Rammed . | . . . . . . . . . . . . . . . . . . . . . . Walls Destroyed . | . . . . . . . . . . . . . . . . . . . . . . Machines Disabled . | . . . . . . . . . . . . . . . . . . . . . . Actions | -11 -10 -9 -9 -8 -7 -6 -6 -6 -5 -5 -5 -5 -4 -4 -4 -4 -4 -4 -4 -3 -3 --------- Run | Scr Mat Mat Min Mat Fac Fac Ext Cet Fac Upp Upp Zhi Pro Fac Was Fac Upp Upp War Pro Res Total 9606 | 4 472 380 93 660 1089 958 623 218 154 315 363 233 374 248 137 24 221 360 869 395 1416 Wait 643 | . 94 65 10 98 124 72 60 3 6 13 . . 1 15 . . . . 12 15 55 Move 7976 | . 327 260 82 478 843 749 516 145 116 269 348 195 338 213 120 24 221 357 847 356 1172 Hop 1 | . . . . . . . . . . . . . . . . . . . . . 1 Pick Up 163 | . 12 12 . 11 32 21 3 12 4 1 1 3 1 4 2 . . 1 3 2 38 Fast Attach 56 | . . . . 9 4 3 1 1 . 2 . 10 . . 2 . . . 2 . 22 Attach 103 | 2 1 2 . . 15 13 2 9 3 1 . . 5 6 3 . . 1 . 5 35 Detach 10 | . . . . . . . . . . . . . . 1 3 . . . . 1 5 Swap 114 | . 7 15 1 8 17 21 5 5 8 8 4 3 7 1 1 . . . . . 3 Drop 122 | 2 6 8 . 19 26 14 5 4 3 . 1 12 . 2 4 . . 1 5 . 10 Fire 321 | . 25 18 . 36 19 55 18 39 7 21 9 1 22 6 2 . . . . 16 27 Melee 96 | . . . . 1 8 10 13 . 7 . . 9 . . . . . . . . 48 Ram . | . . . . . . . . . . . . . . . . . . . . . . Kick . | . . . . . . . . . . . . . . . . . . . . . . Crush 1 | . . . . . 1 . . . . . . . . . . . . . . . . Escape Stasis . | . . . . . . . . . . . . . . . . . . . . . . Rewire . | . . . . . . . . . . . . . . . . . . . . . . Trap . | . . . . . . . . . . . . . . . . . . . . . . Miscellaneous . | . . . . . . . . . . . . . . . . . . . . . . Route ------- -11/Scrapyard -10/Materials (discovered 3 exits: *Mat / [*Min x2]) -9/Materials -9/Mines -8/Materials -7/Factory -6/Factory (discovered 5 exits: *Fac / Low x2 / *Ext x2) -6/Extension (discovered 2 exits: *Fac / *Cet) -6/Cetus (discovered 2 exits: *Fac / *Arc) -5/Factory -5/Upper Caves -5/Upper Caves -5/Zhirov -4/Proximity Caves -4/Factory (discovered 2 exits: Res / Upp) -4/Waste -4/Factory -4/Upper Caves -4/Upper Caves -4/Warlord -3/Proximity Caves -3/Research (discovered 2 exits: Qua x2) History --------- Turn | Location | Event 4 | -11/Scrapyard | Discovered new exit (range 0) 4 | -11/Scrapyard | Entered Materials 314 | -10/Materials | Build established: Mutant 326 | -10/Materials | Discovered new exit (range 16) 393 | -10/Materials | Discovered new exit (range 9) 514 | -10/Materials | Discovered new exit (range 3) 530 | -10/Materials | Entered another Materials area 530 | -9/Materials | Evolved 2 slots: Utility x2 972 | -9/Materials | Discovered new exit (range 5) 1002 | -9/Materials | Entered Mines 1099 | -9/Mines | Discovered new exit (range 7) 1112 | -9/Mines | Entered Materials 1112 | -8/Materials | Evolved 2 slots: Propulsion x1, Weapon x1 1227 | -8/Materials | Repaired Electrolaser? 1857 | -8/Materials | Discovered new exit (range 3) 2006 | -8/Materials | Entered Factory 2006 | -7/Factory | Evolved 2 slots: Utility x2 2028 | -7/Factory | Build established: Skirmisher 2237 | -7/Factory | Fabricated Imp. EM Pulse Cannon (x1) 2467 | -7/Factory | Lost 4 parts (1p3u) 2720 | -7/Factory | Cargo convoy interrupted 3045 | -7/Factory | System corruption reached 10% 3193 | -7/Factory | Build established: Hacker-Gunner 3206 | -7/Factory | First assault squad dispatched 3588 | -7/Factory | Build established: Hacker-Tank 3625 | -7/Factory | Discovered new exit (range 12) 3644 | -7/Factory | Entered another Factory area 3644 | -6/Factory | Evolved 2 slots: Propulsion x1, Weapon x1 3662 | -6/Factory | Identified exit to Lower Caves 3662 | -6/Factory | Identified exit to Extension 4613 | -6/Factory | Garrison activated, responded to threat 4747 | -6/Factory | Discovered new exit (range 9) 4890 | -6/Factory | Build established: Tank 5109 | -6/Factory | Found Prototype Launcher 5109 | -6/Factory | Identified Scatter Rocket Array 5182 | -6/Factory | Entered Extension 5306 | -6/Extension | Rescued a captive Derelict 5366 | -6/Extension | Rescued a captive Derelict 5384 | -6/Extension | Rescued A7 5639 | -6/Extension | Rescued a captive Derelict 5640 | -6/Extension | Rescued a captive Derelict 5768 | -6/Extension | Rescued a captive Derelict 5811 | -6/Extension | Rescued a captive Derelict 5811 | -6/Extension | Rescued a captive Derelict 5835 | -6/Extension | Rescued a captive Derelict 5857 | -6/Extension | Rescued a captive Derelict 5863 | -6/Extension | Rescued a captive Derelict 5936 | -6/Extension | Rescued a captive Derelict 6148 | -6/Extension | Discovered new exit (range 10) 6149 | -6/Extension | Discovered new exit (range 6) 6175 | -6/Extension | Build established: Scavenger-Tank 6177 | -6/Extension | Entered Cetus 6177 | -6/Cetus | Accompanied by 5 allies (A7) 6182 | -6/Cetus | Acquired a Cetus Manufacturing Module code from A7 6198 | -6/Cetus | Spotted Cetus Guard 6198 | -6/Cetus | Spotted Cetus Guard 6205 | -6/Cetus | Spotted Cetus Guard 6208 | -6/Cetus | Spotted Cetus Guard 6219 | -6/Cetus | Destroyed Cetus Guard 6230 | -6/Cetus | Destroyed Cetus Guard 6235 | -6/Cetus | Allies destroyed Cetus Guard 6241 | -6/Cetus | Destroyed Cetus Guard 6337 | -6/Cetus | Started Cetus Manufacturing Module 6362 | -6/Cetus | Manufactured an Enhanced Grunt 6362 | -6/Cetus | Escorted A7 to Cetus Mainframe 6387 | -6/Cetus | Manufactured an Enhanced Grunt 6402 | -6/Cetus | Discovered new exit (range 15) 6407 | -6/Cetus | Cetus Manufacturing Module disabled 6427 | -6/Cetus | Identified exit to Archives 6458 | -6/Cetus | Spotted Cetus Guard 6459 | -6/Cetus | Spotted Cetus Guard 6462 | -6/Cetus | Spotted Cetus Guard 6463 | -6/Cetus | System corruption reached 10% 6470 | -6/Cetus | Allies destroyed Cetus Guard 6477 | -6/Cetus | Spotted Cetus Guard 6478 | -6/Cetus | Destroyed Cetus Guard 6482 | -6/Cetus | Destroyed Cetus Guard 6483 | -6/Cetus | Allies destroyed Cetus Guard 6495 | -6/Cetus | Lost 3 parts (1n1u1w) 6496 | -6/Cetus | Discovered new exit (range 15) 6503 | -6/Cetus | Met Revision 17 6531 | -6/Cetus | Identified exit to Factory 6536 | -6/Cetus | Entered Factory 6536 | -5/Factory | Accompanied by 3 allies (A7) 6536 | -5/Factory | Evolved 2 slots: Power x1, Utility x1 6541 | -5/Factory | Received a hacking code to weaken MAIN.C 6716 | -5/Factory | Discovered new exit (range 5) 6755 | -5/Factory | Found Prototype Device 6756 | -5/Factory | Identified Exp. Thermal Shield 6762 | -5/Factory | Identified exit to Upper Caves 6824 | -5/Factory | Entered Upper Caves 7137 | -5/Upper Caves | Learned Factory garrison access intel 7333 | -5/Upper Caves | Spotted B-75 Beast 7390 | -5/Upper Caves | Destroyed B-75 Beast 7528 | -5/Upper Caves | Discovered new exit (range 5) 7604 | -5/Upper Caves | Identified exit to Upper Caves 7606 | -5/Upper Caves | Entered another Upper Caves area 7879 | -5/Upper Caves | Build established: Scavenger-Mutant 8021 | -5/Upper Caves | Learned 4 Factory zone layouts 8447 | -5/Upper Caves | Learned location of Armory (-4) 8454 | -5/Upper Caves | Discovered new exit (range 9) 8482 | -5/Upper Caves | Identified exit to Zhirov 8486 | -5/Upper Caves | Entered Zhirov 8486 | -5/Zhirov | Discovered new exit (range 3) 8533 | -5/Zhirov | Met Zhirov 8596 | -5/Zhirov | Found Alien Artifact 8596 | -5/Zhirov | Identified Integrated Dissipator 8596 | -5/Zhirov | Installed Integrated Dissipator, increased core heat dissipation (+20) 8826 | -5/Zhirov | Found Alien Artifact 8901 | -5/Zhirov | Learned location of Quarantine (-3) 8901 | -5/Zhirov | Learned location of Testing (-2) 8901 | -5/Zhirov | Learned location of Command (-1) 8919 | -5/Zhirov | Zhirov requested help retrieving the SGEMP Prototype 8975 | -5/Zhirov | Identified exit to Proximity Caves 8977 | -5/Zhirov | Entered Proximity Caves 9148 | -4/Proximity Caves | Attracted the attention of an 0b10 checkpoint 9264 | -4/Proximity Caves | Build established: Scavenger-Tank 9361 | -4/Proximity Caves | Lost 3 parts (1p1n1w) 9491 | -4/Proximity Caves | Spotted B-86 Titan 9711 | -4/Proximity Caves | Discovered new exit (range 9) 9725 | -4/Proximity Caves | Identified exit to Factory 9729 | -4/Proximity Caves | Entered Factory 9729 | -4/Factory | Evolved 2 slots: Utility x2 9730 | -4/Factory | Identified exit to Research 9730 | -4/Factory | Identified exit to Upper Caves 9731 | -4/Factory | Loaded intel: 4 garrison access locations 10193 | -4/Factory | Sucked down chute 10193 | -4/Factory | Entered Waste 10196 | -4/Waste | Found Prototype Device 10197 | -4/Waste | Identified Exp. Phase Shifter 10208 | -4/Waste | EMP discharged 10237 | -4/Waste | Spotted C-40 Crusher 10249 | -4/Waste | Crushed by Compactor (1 part destroyed, 2 dropped) 10252 | -4/Waste | Crushed by Compactor (1 part destroyed, 1 dropped) 10255 | -4/Waste | Crushed by Compactor (1 part destroyed, 2 dropped) 10256 | -4/Waste | Identified Transdimensional Reconstructor 10256 | -4/Waste | Warped through subspace 10256 | -4/Waste | Spotted C-40 Crusher 10256 | -4/Waste | Spotted C-40 Crusher 10260 | -4/Waste | Spotted C-40 Crusher 10265 | -4/Waste | Crushed by Compactor (1 part destroyed, 1 dropped) 10275 | -4/Waste | Spotted C-40 Crusher 10291 | -4/Waste | System corruption reached 10% 10295 | -4/Waste | Spotted C-40 Crusher 10296 | -4/Waste | Lost 4 parts (1p1n2w) 10300 | -4/Waste | Crushed by Compactor (1 part destroyed, 1 dropped) 10305 | -4/Waste | Discovered new exit (range 11) 10308 | -4/Waste | EMP discharged 10313 | -4/Waste | Identified exit to Factory 10314 | -4/Waste | Entered Factory 10322 | -4/Factory | Discovered exit to Upper Caves (range 4) 10327 | -4/Factory | Entered Upper Caves 10436 | -4/Upper Caves | Discovered new exit (range 3) 10438 | -4/Upper Caves | Identified exit to Upper Caves 10438 | -4/Upper Caves | Entered another Upper Caves area 10546 | -4/Upper Caves | Learned Research garrison access intel 10552 | -4/Upper Caves | Attracted the attention of an 0b10 checkpoint 10556 | -4/Upper Caves | Build established: Mutant 10618 | -4/Upper Caves | Discovered new exit (range 3) 10619 | -4/Upper Caves | Identified exit to Warlord 10620 | -4/Upper Caves | Entered Warlord 10641 | -4/Warlord | System corruption cleaned by Quarantine Array 10668 | -4/Warlord | Visited the Vortex Lab 10672 | -4/Warlord | Found Prototype Energy Cannon 10673 | -4/Warlord | Found Prototype Energy Cannon 10673 | -4/Warlord | Identified Vortex Cannon (x2) 10677 | -4/Warlord | Found Prototype Launcher 10687 | -4/Warlord | Warlord's base attacked by MAIN.C 10852 | -4/Warlord | Found Prototype Device 10852 | -4/Warlord | Identified Minesniffer Drone Bay 10981 | -4/Warlord | Met Warlord 11021 | -4/Warlord | Opened side exit 11037 | -4/Warlord | Warlord forces counterattacked 11059 | -4/Warlord | Discovered new exit (range 8) 11064 | -4/Warlord | Identified exit to Proximity Caves 11065 | -4/Warlord | Entered Proximity Caves 11127 | -3/Proximity Caves | Attracted the attention of an 0b10 checkpoint 11142 | -3/Proximity Caves | Identified Vortex Catalyst Activator 11145 | -3/Proximity Caves | Core integrity fell below 50% 11194 | -3/Proximity Caves | Lost 6 parts (3n1u2w) 11311 | -3/Proximity Caves | Core integrity fell below 20% 11326 | -3/Proximity Caves | Discovered exit to Research (range 5) 11329 | -3/Proximity Caves | Entered Research 11329 | -3/Research | Evolved 2 slots: Utility x2 11330 | -3/Research | Loaded intel: 4 garrison access locations 11507 | -3/Research | Identified exit to Quarantine 11514 | -3/Research | Found Prototype Device 11514 | -3/Research | Identified Adv. Kinecellerator 11649 | -3/Research | Found Gamma Bomb Array 11705 | -3/Research | Found Enh. Force Lance 11770 | -3/Research | Lost 6 parts (4u2w) 12109 | -3/Research | System corruption reached 10% 12112 | -3/Research | Lost 3 parts (1n2u) 12148 | -3/Research | Core integrity fell below 50% 12175 | -3/Research | Lost 5 parts (1p2n1u1w) 12338 | -3/Research | Lost 3 parts (1p1n1u) 12380 | -3/Research | Spotted B-86 Titan 12399 | -3/Research | Lost 3 parts (1p1n1w) 12460 | -3/Research | Core integrity fell below 20% 12487 | -3/Research | Lost 5 parts (1p3u1w) 12566 | -3/Research | Destroyed by S-43 Plague with Heavy Machine Gun Last Messages --------------- H-77 Assassin destroyed. B%|QCAE IIOEMP3WXAHZCIQOTZ36>VCV1KS Acquired Adv. Target Analyzer. Acquired Lgt. Antimatter Reactor. Acquired 58 matter. Acquired Sml. Battery. Acquired 20 matter. Acquired Sml. Battery. System corrupted: Component data lost. Acquired Imp. Antigrav System. Acquired 40 matter. System corrupted: Substantial component data lost. System corrupted: Energy discharge (-132). Slug penetrates Wall. System corrupted: Lgt. Particle Reactor rejected. Acquired Lgt. Particle Reactor. Sml. Battery destroyed. Slug penetrates Mason Extractor. Lgt. Antimatter Reactor destroyed. QOPHG WN6GA2RKGCTIDMP0